fUST/lending_fUST_20250217
["ID","MTS","AMOUNT","RATE_DAILY","PERIOD"]
[353292291,1739741463675,-1690.465882,0.00010959,2]
[353292293,1739741463685,-293.46370652,0.00010959,2]
[353292295,1739741463698,-918.38571523,0.00010959,2]
[353292304,1739741463773,-641.59,9.534e-05,2]
[353292305,1739741463782,-641.59,9.616e-05,2]
[353292307,1739741463792,-641.59,9.698e-05,2]
[353292309,1739741463802,-641.59,9.78e-05,2]
[353292312,1739741463812,-641.59,9.863e-05,2]
[353292313,1739741463821,-272.7231781,9.945e-05,2]
[353292316,1739741463833,-368.8668219,9.945e-05,2]
[353292318,1739741463843,-641.59,0.00010027,2]
[353292320,1739741463852,-478.61646025,0.00010959,2]
[353292321,1739741463862,-1690.465882,0.00010959,2]
[353292323,1739741463871,-1690.465882,0.00010959,2]
[353292324,1739741463881,-1690.465882,0.00010959,2]
[353292325,1739741463892,-1690.465882,0.00010959,2]
[353292326,1739741463901,-1690.465882,0.00010959,2]
[353292327,1739741463912,-1690.465882,0.00010959,2]
[353292328,1739741463921,-1690.465882,0.00010959,2]
[353292329,1739741463931,-1690.465882,0.00010959,2]
[353292330,1739741463940,-1690.465882,0.00010959,2]
[353292331,1739741463949,-1690.465882,0.00010959,2]
[353292332,1739741463959,-1690.465882,0.00010959,2]
[353292333,1739741463968,-968.77729156,0.00010959,2]
[353292334,1739741463980,-721.68859044,0.00010959,2]
[353292335,1739741463989,-1690.465882,0.00010959,2]
[353292336,1739741463999,-1690.465882,0.00010959,2]
[353292337,1739741464008,-911.20494213,0.00010959,2]
[353292338,1739741464020,-779.26094387,0.00010959,2]
[353292339,1739741464029,-794.27857,0.00010959,2]
[353292340,1739741464039,-794.27857,0.00010959,2]
[353292342,1739741464049,-794.27857,0.00010959,2]
[353292344,1739741464058,-794.27857,0.00010959,2]
[353292346,1739741464068,-794.27857,0.00010959,2]
[353292348,1739741464077,-794.27857,0.00010959,2]
[353292349,1739741464086,-794.27857,0.00010959,2]
[353292351,1739741464096,-794.27857,0.00010959,2]
[353292353,1739741464105,-794.27857,0.00010959,2]
[353292355,1739741464115,-794.27857,0.00010959,2]
[353292357,1739741464124,-794.27857,0.00010959,2]
[353292359,1739741464133,-794.27857,0.00010959,2]
[353292361,1739741464143,-794.27857,0.00010959,2]
[353292363,1739741464153,-52.57558473,0.00010959,2]
[353292365,1739741464165,-741.70298527,0.00010959,2]
[353292367,1739741464174,-794.27857,0.00010959,2]
[353292369,1739741464183,-794.27857,0.00010959,2]
[353292371,1739741464193,-794.27857,0.00010959,2]
[353292373,1739741464203,-397.57043489,0.00010959,2]
[353292375,1739741464215,-396.70813511,0.00010959,2]
[353292377,1739741464227,-7.20343169,0.00010959,2]
[353292379,1739741464238,-535.84346821,0.00010959,2]
[353292381,1739741464251,-251.2316701,0.00010959,2]
[353292383,1739741464261,-794.278561,0.00010959,2]
[353292385,1739741464271,-151.0,0.00010959,2]
[353292387,1739741464281,-151.0,0.00010959,2]
[353292389,1739741464291,-151.0,0.00010959,2]
[353292391,1739741464302,-151.0,0.00010959,2]
[353292394,1739741464312,-151.0,0.00010959,2]
[353292395,1739741464321,-151.0,0.00010959,2]
[353292397,1739741464331,-151.0,0.00010959,2]
[353292399,1739741464340,-156.07151,0.00010959,2]
[353292401,1739741464349,-672.188052,0.00010959,2]
[353292403,1739741464359,-672.188052,0.00010959,2]
[353292405,1739741464368,-672.188052,0.00010959,2]
[353292407,1739741464377,-672.188052,0.00010959,2]
[353292409,1739741464387,-672.188052,0.00010959,2]
[353292411,1739741464396,-672.188052,0.00010959,2]
[353292413,1739741464405,-672.188052,0.00010959,2]
[353292415,1739741464415,-672.188052,0.00010959,2]
[353292417,1739741464423,-100.12336069,0.00010959,2]
[353292419,1739741464436,-572.06469131,0.00010959,2]
[353292421,1739741464445,-672.188052,0.00010959,2]
[353292423,1739741464454,-672.188052,0.00010959,2]
[353292425,1739741464464,-672.188052,0.00010959,2]
[353292427,1739741464473,-364.33226318,0.00010959,2]
[353293786,1739742436129,-5000.0,8.136e-05,2]
[353293787,1739742436152,-300.0,8.218e-05,2]
[353293788,1739742436173,-500.0,8.219e-05,2]
[353293789,1739742436195,-501.2785299,8.219e-05,2]
[353293790,1739742436216,-639.52588674,8.219e-05,2]
[353293791,1739742436237,-542.22037632,8.219e-05,2]
[353293792,1739742436259,-500.0,8.219e-05,2]
[353293793,1739742436280,-500.0,8.219e-05,2]
[353293794,1739742436301,-478.43161877,8.219e-05,2]
[353293857,1739742632775,-300.0,8.218e-05,2]
[353293859,1739742632785,-21.56838123,8.219e-05,2]
[353293861,1739742632795,-16.7243777,8.219e-05,2]
[353293864,1739742632807,-622.54494958,8.219e-05,2]
[353293866,1739742632816,-500.0,8.219e-05,2]
[353293868,1739742632826,-500.0,8.219e-05,2]
[353293870,1739742632835,-500.0,8.219e-05,2]
[353293872,1739742632845,-500.0,8.219e-05,2]
[353293874,1739742632855,-400.2037739,8.219e-05,2]
[353293876,1739742632864,-500.0,8.219e-05,2]
[353293878,1739742632874,-500.0,8.219e-05,2]
[353293879,1739742632884,-500.0,8.219e-05,2]
[353293880,1739742632894,-249.58592137,8.219e-05,2]
[353293881,1739742632903,-620.50429697,8.219e-05,2]
[353293882,1739742632914,-500.0,8.301e-05,2]
[353293883,1739742632923,-181.0,8.383e-05,2]
[353293884,1739742632933,-2000.0,8.5e-05,2]
[353293885,1739742632942,-500.0,8.711e-05,2]
[353293886,1739742632952,-500.0,8.711e-05,2]
[353293887,1739742632962,-269.22348911,8.711e-05,2]
[353293888,1739742632971,-208.72347352,8.772e-05,2]
[353293889,1739742632981,-500.0,8.899e-05,2]
[353293890,1739742632991,-502.63346704,8.899e-05,2]
[353293891,1739742633000,-500.0,8.899e-05,2]
[353293892,1739742633010,-500.0,8.899e-05,2]
[353293893,1739742633020,-500.0,8.899e-05,2]
[353293894,1739742633029,-500.0,8.899e-05,2]
[353293895,1739742633039,-1112.01,8.899e-05,2]
[353293896,1739742633049,-1080.03,8.899e-05,2]
[353293897,1739742633058,-641.71888527,8.899e-05,2]
[353293898,1739742633068,-500.0,8.899e-05,2]
[353293899,1739742633078,-2728.04,8.9e-05,2]
[353293900,1739742633091,-282.03,8.981e-05,2]
[353293901,1739742633101,-1112.01,8.981e-05,2]
[353293902,1739742633111,-1080.03,8.981e-05,2]
[353293903,1739742633123,-500.0,8.981e-05,2]
[353293904,1739742633132,-500.0,9.04e-05,2]
[353293905,1739742633142,-500.0,9.04e-05,2]
[353293906,1739742633153,-500.0,9.04e-05,2]
[353293907,1739742633163,-420.0,9.04e-05,2]
[353293908,1739742633173,-1112.01,9.063e-05,2]
[353293909,1739742633184,-1080.03,9.063e-05,2]
[353293910,1739742633194,-500.0,9.122e-05,2]
[353293911,1739742633204,-500.0,9.122e-05,2]
[353293912,1739742633214,-1112.01,9.146e-05,2]
[353293913,1739742633223,-1080.03,9.146e-05,2]
[353293915,1739742633233,-500.0,9.204e-05,2]
[353293918,1739742633243,-500.0,9.204e-05,2]
[353293920,1739742633252,-1112.01,9.228e-05,2]
[353293922,1739742633261,-1080.03,9.228e-05,2]
[353293924,1739742633271,-500.0,9.287e-05,2]
[353293926,1739742633280,-500.0,9.287e-05,2]
[353293928,1739742633290,-1112.01,9.31e-05,2]
[353293930,1739742633301,-1080.03,9.31e-05,2]
[353293932,1739742633310,-500.0,9.369e-05,2]
[353293934,1739742633321,-500.0,9.369e-05,2]
[353293936,1739742633331,-1112.01,9.392e-05,2]
[353293938,1739742633340,-1080.03,9.392e-05,2]
[353293957,1739742633513,-500.0,9.451e-05,2]
[353293958,1739742633524,-500.0,9.451e-05,2]
[353293959,1739742633534,-1112.01,9.474e-05,2]
[353293962,1739742633545,-1080.03,9.474e-05,2]
[353293964,1739742633555,-500.0,9.533e-05,2]
[353293966,1739742633564,-500.0,9.533e-05,2]
[353293968,1739742633574,-1112.01,9.556e-05,2]
[353293970,1739742633583,-1080.03,9.556e-05,2]
[353293972,1739742633593,-500.0,9.615e-05,2]
[353293974,1739742633603,-500.0,9.615e-05,2]
[353293976,1739742633613,-1112.01,9.639e-05,2]
[353293978,1739742633622,-1080.03,9.639e-05,2]
[353293980,1739742633632,-500.0,9.698e-05,2]
[353293982,1739742633642,-500.0,9.698e-05,2]
[353293984,1739742633651,-1112.01,9.721e-05,2]
[353293986,1739742633660,-1080.03,9.721e-05,2]
[353293988,1739742633669,-500.0,9.78e-05,2]
[353293990,1739742633678,-500.0,9.78e-05,2]
[353293992,1739742633688,-876.21765887,9.78e-05,2]
[353293994,1739742633698,-1112.01,9.803e-05,2]
[353293996,1739742633708,-1080.03,9.803e-05,2]
[353293998,1739742633717,-500.0,9.862e-05,2]
[353294000,1739742633727,-539.81851401,9.862e-05,2]
[353294002,1739742633736,-1112.01,9.885e-05,2]
[353294004,1739742633745,-1080.03,9.885e-05,2]
[353294006,1739742633754,-500.0,9.944e-05,2]
[353294008,1739742633764,-587.0,9.944e-05,2]
[353294010,1739742633774,-842.076,9.945e-05,2]
[353294012,1739742633784,-1112.01,9.967e-05,2]
[353294014,1739742633793,-1080.03,9.967e-05,2]
[353294016,1739742633802,-7438.69753278,0.0001,2]
[353294018,1739742633811,-2000.0,0.0001,2]
[353294020,1739742633821,-2000.0,0.0001,2]
[353294021,1739742633830,-2000.0,0.0001,2]
[353294023,1739742633839,-2200.0,0.0001,2]
[353294026,1739742633849,-151.0,0.0001,2]
[353294028,1739742633858,-253.0537776,0.00010026,2]
[353294030,1739742633868,-1112.01,0.0001005,2]
[353294032,1739742633878,-1080.03,0.0001005,2]
[353294033,1739742633888,-1112.01,0.00010132,2]
[353294034,1739742633898,-1080.03,0.00010132,2]
[353294035,1739742633908,-1112.01,0.00010214,2]
[353294036,1739742633918,-1080.03,0.00010214,2]
[353294037,1739742633928,-876.21765886,0.0001027,2]
[353294038,1739742633938,-1112.01,0.00010296,2]
[353294039,1739742633947,-1080.03,0.00010296,2]
[353294040,1739742633957,-1112.01,0.00010378,2]
[353294041,1739742633967,-1080.03,0.00010378,2]
[353294042,1739742633977,-1112.01,0.00010461,2]
[353294043,1739742633986,-1080.03,0.00010461,2]
[353294044,1739742633996,-1112.01,0.00010543,2]
[353294045,1739742634006,-1080.03,0.00010543,2]
[353294046,1739742634015,-166.1,0.00010548,2]
[353294047,1739742634026,-1112.01,0.00010625,2]
[353294048,1739742634035,-1080.03,0.00010625,2]
[353294049,1739742634045,-400.0,0.00010685,2]
[353294050,1739742634054,-1112.01,0.00010707,2]
[353294051,1739742634064,-1080.03,0.00010707,2]
[353294052,1739742634073,-1112.21630165,0.00010789,2]
[353294053,1739742634086,-1080.04926382,0.00010789,2]
[353294054,1739742634096,-1086.1515973,0.00010849,2]
[353294055,1739742634105,-500.0,0.00010858,2]
[353294056,1739742634115,-500.0,0.00010858,2]
[353294058,1739742634126,-876.21765886,0.00010859,2]
[353294059,1739742634136,-1000.0,0.000109,2]
[353294061,1739742634145,-500.0,0.00010935,2]
[353294063,1739742634156,-500.0,0.00010935,2]
[353294065,1739742634166,-823.0,0.00010938,2]
[353294067,1739742634175,-500.0,0.00010957,2]
[353294069,1739742634185,-257.70212901,0.00010958,2]
[353294071,1739742634194,-500.0,0.00010958,2]
[353294073,1739742634204,-500.0,0.00010958,2]
[353294075,1739742634213,-225.12734051,0.00010958,2]
[353294077,1739742634222,-500.0,0.00010958,2]
[353294079,1739742634232,-500.0,0.00010958,2]
[353294081,1739742634241,-500.0,0.00010958,2]
[353294083,1739742634251,-500.0,0.00010958,2]
[353294085,1739742634261,-500.0,0.00010958,2]
[353294087,1739742634271,-500.0,0.00010958,2]
[353294089,1739742634281,-500.0,0.00010958,2]
[353294091,1739742634291,-500.0,0.00010958,2]
[353294093,1739742634301,-394.7958887,0.00010958,2]
[353294095,1739742634311,-500.0,0.00010958,2]
[353294097,1739742634321,-181.6753779,0.00010958,2]
[353294099,1739742634331,-477.78800012,0.00010958,2]
[353294101,1739742634341,-161.71838847,0.00010958,2]
[353294103,1739742634351,-500.0,0.00010958,2]
[353294105,1739742634360,-500.0,0.00010958,2]
[353294107,1739742634370,-493.44,0.00010958,2]
[353294109,1739742634381,-483.674336,0.00010959,2]
[353294111,1739742634393,-483.674336,0.00010959,2]
[353294113,1739742634403,-483.674336,0.00010959,2]
[353294115,1739742634413,-483.674336,0.00010959,2]
[353294117,1739742634423,-483.674336,0.00010959,2]
[353294119,1739742634435,-483.674336,0.00010959,2]
[353294121,1739742634445,-483.674336,0.00010959,2]
[353294123,1739742634455,-483.674336,0.00010959,2]
[353294125,1739742634465,-483.674336,0.00010959,2]
[353294127,1739742634475,-483.674336,0.00010959,2]
[353294129,1739742634484,-483.674336,0.00010959,2]
[353294131,1739742634493,-483.674336,0.00010959,2]
[353294133,1739742634503,-483.674336,0.00010959,2]
[353294135,1739742634512,-483.674336,0.00010959,2]
[353294137,1739742634522,-483.674336,0.00010959,2]
[353294139,1739742634533,-483.674336,0.00010959,2]
[353294141,1739742634543,-483.674336,0.00010959,2]
[353294143,1739742634553,-483.674336,0.00010959,2]
[353294145,1739742634566,-483.674336,0.00010959,2]
[353294147,1739742634575,-483.674333,0.00010959,2]
[353294149,1739742634585,-259.725298,0.00010959,2]
[353294151,1739742634595,-151.0,0.00010959,2]
[353294153,1739742634604,-151.0,0.00010959,2]
[353294156,1739742634614,-151.0,0.00010959,2]
[353294158,1739742634623,-151.0,0.00010959,2]
[353294159,1739742634634,-151.0,0.00010959,2]
[353294162,1739742634643,-151.0,0.00010959,2]
[353294163,1739742634652,-151.0,0.00010959,2]
[353294166,1739742634661,-151.0,0.00010959,2]
[353294168,1739742634671,-151.0,0.00010959,2]
[353294170,1739742634680,-151.0,0.00010959,2]
[353294171,1739742634689,-151.0,0.00010959,2]
[353294174,1739742634699,-151.0,0.00010959,2]
[353294176,1739742634708,-151.0,0.00010959,2]
[353294178,1739742634718,-151.0,0.00010959,2]
[353294180,1739742634727,-151.0,0.00010959,2]
[353294182,1739742634736,-194.630901,0.00010959,2]
[353294184,1739742634746,-151.0,0.00010959,2]
[353294186,1739742634755,-151.0,0.00010959,2]
[353294188,1739742634765,-151.0,0.00010959,2]
[353294190,1739742634774,-151.0,0.00010959,2]
[353294192,1739742634783,-151.0,0.00010959,2]
[353294194,1739742634792,-151.0,0.00010959,2]
[353294196,1739742634801,-151.0,0.00010959,2]
[353294198,1739742634811,-151.0,0.00010959,2]
[353294200,1739742634820,-182.907863,0.00010959,2]
[353294202,1739742634829,-255.396714,0.00010959,2]
[353294204,1739742634838,-255.396714,0.00010959,2]
[353294206,1739742634847,-255.396714,0.00010959,2]
[353294208,1739742634856,-255.396714,0.00010959,2]
[353294210,1739742634865,-255.396714,0.00010959,2]
[353294212,1739742634875,-255.396714,0.00010959,2]
[353294214,1739742634884,-255.396714,0.00010959,2]
[353294216,1739742634893,-255.396714,0.00010959,2]
[353294218,1739742634902,-255.396714,0.00010959,2]
[353294220,1739742634911,-255.396714,0.00010959,2]
[353294222,1739742634921,-255.396714,0.00010959,2]
[353294224,1739742634930,-255.396714,0.00010959,2]
[353294226,1739742634940,-255.396714,0.00010959,2]
[353294228,1739742634949,-255.396714,0.00010959,2]
[353294230,1739742634958,-255.396714,0.00010959,2]
[353294232,1739742634968,-255.396714,0.00010959,2]
[353294234,1739742634977,-255.396714,0.00010959,2]
[353294236,1739742634988,-255.396714,0.00010959,2]
[353294238,1739742634997,-255.396714,0.00010959,2]
[353294240,1739742635007,-255.396723,0.00010959,2]
[353294242,1739742635017,-151.0,0.00010959,2]
[353294244,1739742635027,-151.0,0.00010959,2]
[353294246,1739742635038,-151.0,0.00010959,2]
[353294248,1739742635047,-151.0,0.00010959,2]
[353294250,1739742635058,-248.633269,0.00010959,2]
[353294252,1739742635067,-151.0,0.00010959,2]
[353294254,1739742635078,-151.0,0.00010959,2]
[353294256,1739742635093,-151.0,0.00010959,2]
[353294258,1739742635103,-403.16627,0.00010959,2]
[353294260,1739742635113,-403.16627,0.00010959,2]
[353294262,1739742635123,-403.16627,0.00010959,2]
[353294264,1739742635134,-403.16627,0.00010959,2]
[353294266,1739742635143,-403.16627,0.00010959,2]
[353294268,1739742635152,-403.16627,0.00010959,2]
[353294270,1739742635161,-403.16627,0.00010959,2]
[353294272,1739742635171,-403.16627,0.00010959,2]
[353294274,1739742635180,-403.16627,0.00010959,2]
[353294276,1739742635190,-403.16627,0.00010959,2]
[353294278,1739742635199,-403.16627,0.00010959,2]
[353294280,1739742635209,-403.16627,0.00010959,2]
[353294282,1739742635219,-403.16627,0.00010959,2]
[353294284,1739742635228,-403.16627,0.00010959,2]
[353294286,1739742635238,-403.16627,0.00010959,2]
[353294288,1739742635247,-403.16627,0.00010959,2]
[353294290,1739742635256,-403.16627,0.00010959,2]
[353294292,1739742635265,-403.16627,0.00010959,2]
[353294294,1739742635274,-403.16627,0.00010959,2]
[353294296,1739742635283,-403.166267,0.00010959,2]
[353294298,1739742635293,-151.0,0.00010959,2]
[353294300,1739742635303,-702.988902,0.00010959,2]
[353294302,1739742635312,-702.988902,0.00010959,2]
[353294304,1739742635321,-702.988902,0.00010959,2]
[353294306,1739742635330,-702.988902,0.00010959,2]
[353294308,1739742635339,-702.988902,0.00010959,2]
[353294310,1739742635349,-702.988902,0.00010959,2]
[353294312,1739742635358,-702.988902,0.00010959,2]
[353294314,1739742635368,-702.988902,0.00010959,2]
[353294316,1739742635377,-702.988902,0.00010959,2]
[353294318,1739742635389,-702.988902,0.00010959,2]
[353294320,1739742635399,-702.988902,0.00010959,2]
[353294322,1739742635408,-702.988902,0.00010959,2]
[353294324,1739742635417,-702.988902,0.00010959,2]
[353294326,1739742635427,-702.988902,0.00010959,2]
[353294328,1739742635436,-702.988902,0.00010959,2]
[353294330,1739742635445,-702.988902,0.00010959,2]
[353294332,1739742635455,-702.988902,0.00010959,2]
[353294334,1739742635464,-702.988902,0.00010959,2]
[353294336,1739742635473,-702.988902,0.00010959,2]
[353294338,1739742635482,-702.988908,0.00010959,2]
[353294340,1739742635492,-151.0,0.00010959,2]
[353294342,1739742635501,-151.0,0.00010959,2]
[353294344,1739742635510,-11903.15,0.00010959,2]
[353294346,1739742635520,-10341.69,0.00010959,2]
[353294348,1739742635529,-8618.08,0.00010959,2]
[353294350,1739742635539,-7181.73,0.00010959,2]
[353294353,1739742635549,-5984.78,0.00010959,2]
[353294354,1739742635558,-4987.31,0.00010959,2]
[353294357,1739742635568,-4156.09,0.00010959,2]
[353294359,1739742635577,-3463.41,0.00010959,2]
[353294361,1739742635587,-2886.18,0.00010959,2]
[353294363,1739742635596,-2405.15,0.00010959,2]
[353294364,1739742635606,-2004.29,0.00010959,2]
[353294367,1739742635616,-1670.24,0.00010959,2]
[353294369,1739742635625,-1391.87,0.00010959,2]
[353294371,1739742635637,-1159.89,0.00010959,2]
[353294373,1739742635646,-519.0,0.00010959,2]
[353294375,1739742635655,-500.0,0.00010959,2]
[353294377,1739742635665,-150.08,0.00010959,2]
[353294379,1739742635674,-500.0,0.00010968,2]
[353294381,1739742635684,-500.0,0.00010968,2]
[353294383,1739742635693,-13173.98308483,0.00010971,2]
[353294385,1739742635703,-635.95312818,0.00010973,2]
[353294387,1739742635713,-501.99086354,0.00010973,2]
[353294389,1739742635722,-179.0,0.00011,2]
[353294391,1739742635732,-189.25,0.00011,2]
[353294393,1739742635742,-2000.0,0.00011,2]
[353294395,1739742635751,-2000.0,0.00011,2]
[353294397,1739742635761,-151.0,0.00011,2]
[353294399,1739742635771,-151.0,0.00011,2]
[353294401,1739742635780,-151.0,0.00011,2]
[353294403,1739742635789,-1058.599999,0.00011,2]
[353294405,1739742635799,-151.0,0.00011,2]
[353294407,1739742635809,-151.0,0.00011,2]
[353294409,1739742635818,-151.0,0.00011,2]
[353294411,1739742635827,-500.0,0.00011028,2]
[353294413,1739742635837,-500.0,0.00011028,2]
[353294415,1739742635847,-500.0,0.00011041,2]
[353294417,1739742635857,-500.0,0.00011041,2]
[353294419,1739742635867,-182.71,0.00011096,2]
[353294421,1739742635876,-151.0,0.000111,2]
[353294423,1739742635886,-151.0,0.000111,2]
[353294425,1739742635896,-500.0,0.00011159,2]
[353294427,1739742635905,-500.0,0.00011164,2]
[353294429,1739742635915,-500.0,0.00011164,2]
[353294431,1739742635925,-500.0,0.00011164,2]
[353294433,1739742635935,-500.0,0.00011164,2]
[353294435,1739742635944,-632.70537746,0.00011164,2]
[353294437,1739742635954,-500.0,0.00011164,2]
[353294439,1739742635963,-500.0,0.00011164,2]
[353294441,1739742635973,-501.13662654,0.00011164,2]
[353294443,1739742635982,-500.000001,0.000112,2]
[353294445,1739742635992,-151.0,0.000112,2]
[353294447,1739742636002,-151.0,0.000112,2]
[353294449,1739742636012,-151.0,0.000112,2]
[353294451,1739742636022,-151.0,0.000112,2]
[353294453,1739742636031,-500.0,0.00011205,2]
[353294455,1739742636041,-500.0,0.00011205,2]
[353294457,1739742636051,-500.0,0.00011219,2]
[353294459,1739742636060,-500.0,0.00011222,2]
[353294461,1739742636071,-519.0,0.00011233,2]
[353294463,1739742636082,-500.0,0.00011233,2]
[353294465,1739742636092,-355.0671123,0.00011288,2]
[353294467,1739742636101,-355.0671123,0.00011288,2]
[353294469,1739742636111,-355.0671123,0.00011288,2]
[353294471,1739742636121,-355.0671123,0.00011288,2]
[353294473,1739742636131,-355.0671123,0.00011288,2]
[353294475,1739742636141,-355.0671123,0.00011288,2]
[353294477,1739742636151,-355.0671123,0.00011288,2]
[353294479,1739742636161,-355.0671123,0.00011288,2]
[353294481,1739742636171,-355.0671123,0.00011288,2]
[353294483,1739742636180,-352.7325187,0.00011288,2]
[353294485,1739742636190,-864.22402098,0.000113,2]
[353294500,1739742636311,-151.0,0.000113,2]
[353294502,1739742636320,-151.0,0.000113,2]
[353294504,1739742636330,-38637.26736222,0.000113,2]
[353294506,1739742636339,-13173.98308483,0.00011376,2]
[353294508,1739742636349,-18800.0,0.000114,2]
[353294510,1739742636359,-151.0,0.000114,2]
[353294512,1739742636369,-151.0,0.000114,2]
[353294514,1739742636378,-151.0,0.000114,2]
[353294516,1739742636388,-1020.16117032,0.00011431,2]
[353294518,1739742636398,-1000.0,0.00011483,2]
[353294520,1739742636407,-1000.55898504,0.00011483,2]
[353294522,1739742636417,-1000.0,0.00011489,2]
[353294524,1739742636427,-7007.33388216,0.00011499,2]
[353294526,1739742636436,-5000.0,0.00011499,2]
[353294528,1739742636446,-5000.0,0.00011499,2]
[353294530,1739742636456,-5000.0,0.00011499,2]
[353294532,1739742636465,-5000.0,0.00011499,2]
[353294534,1739742636475,-876.0,0.000115,3]
[353294536,1739742636484,-151.0,0.000115,2]
[353294538,1739742636493,-151.0,0.000115,2]
[353294540,1739742636503,-7618.77808058,0.000115,2]
[353294542,1739742636512,-5000.0,0.000115,2]
[353294544,1739742636522,-5000.0,0.000115,2]
[353294546,1739742636531,-5000.0,0.000115,2]
[353294548,1739742636541,-5000.0,0.000115,2]
[353294550,1739742636550,-5016.62742755,0.000115,2]
[353294552,1739742636559,-5000.0,0.000115,2]
[353294554,1739742636569,-5000.0,0.000115,2]
[353294556,1739742636579,-5000.0,0.000115,2]
[353294558,1739742636587,-5000.0,0.000115,2]
[353294560,1739742636597,-519.0,0.00011507,2]
[353294562,1739742636607,-500.0,0.00011507,2]
[353294564,1739742636616,-1000.60531167,0.00011516,2]
[353294566,1739742636626,-1000.0,0.00011516,2]
[353294568,1739742636635,-1096.623644,0.00011576,2]
[353294570,1739742636644,-516.71114806,0.00011576,2]
[353294572,1739742636653,-1000.0,0.00011589,2]
[353294574,1739742636663,-1000.0,0.00011589,2]
[353294576,1739742636672,-151.0,0.000116,2]
[353294578,1739742636682,-200.981,0.00011644,2]
[353294579,1739742636691,-151.0,0.000117,2]
[353294581,1739742636700,-1000.0,0.00011707,2]
[353294583,1739742636711,-1009.54414089,0.00011712,2]
[353294585,1739742636720,-1000.0,0.00011712,2]
[353294587,1739742636730,-1000.0,0.00011712,2]
[353294590,1739742636740,-1000.0,0.00011712,2]
[353294591,1739742636749,-1000.0,0.00011712,2]
[353294593,1739742636759,-1000.0,0.00011753,2]
[353294595,1739742636769,-1000.0,0.00011753,2]
[353294597,1739742636779,-500.69720356,0.00011767,2]
[353294599,1739742636788,-153.0,0.00011769,2]
[353294601,1739742636798,-154.6992002,0.00011769,2]
[353294604,1739742636807,-215.9670454,0.00011769,2]
[353294605,1739742636816,-154.6992002,0.00011769,2]
[353294608,1739742636826,-215.9670454,0.00011769,2]
[353294609,1739742636835,-154.6992002,0.00011769,2]
[353294612,1739742636844,-215.9670454,0.00011769,2]
[353294614,1739742636854,-1000.0,0.0001177,2]
[353294616,1739742636864,-519.0,0.00011781,2]
[353294618,1739742636874,-500.0,0.00011781,2]
[353294620,1739742636884,-151.0,0.000118,2]
[353294621,1739742636894,-3000.0,0.00011808,2]
[353294624,1739742636904,-151.0,0.000119,2]
[353294626,1739742636914,-408.872234,0.000119,2]
[353294628,1739742636924,-151.0,0.000119,2]
[353294630,1739742636934,-9911.141395,0.000119,2]
[353294631,1739742636944,-9911.141395,0.000119,2]
[353294633,1739742636953,-151.0,0.000119,2]
[353294635,1739742636963,-18514.07331308,0.000119,2]
[353294637,1739742636973,-16675.5151809,0.000119,2]
[353294639,1739742636982,-16675.5151809,0.000119,2]
[353294641,1739742636992,-16675.5151809,0.000119,2]
[353294643,1739742637002,-16675.5151809,0.000119,2]
[353294645,1739742637013,-79345.2454287,0.00011908,2]
[353294647,1739742637023,-151.0,0.00011908,2]
[353294649,1739742637032,-9566.851562,0.00011908,2]
[353294651,1739742637041,-9566.851562,0.00011908,2]
[353294653,1739742637051,-1740.394958,0.00011908,2]
[353294655,1739742637060,-1740.394958,0.00011908,2]
[353294657,1739742637069,-250.658608,0.00011908,2]
[353294660,1739742637079,-250.658608,0.00011908,2]